fUSD/lending_fUSD_20260131
["ID","MTS","AMOUNT","RATE_DAILY","PERIOD"]
[404152160,1769883038408,-1076.99786911,0.0001269,2]
[404152161,1769883038418,-500.0,0.00012691,2]
[404152162,1769883038427,-500.0,0.00012691,2]
[404152163,1769883038437,-500.0,0.00012691,2]
[404152164,1769883038447,-500.0,0.00012691,2]
[404152165,1769883038457,-500.0,0.00012691,2]
[404152166,1769883038467,-500.0,0.00012691,2]
[404152167,1769883038476,-500.0,0.00012691,2]
[404152168,1769883038486,-500.0,0.00012691,2]
[404152169,1769883038495,-500.0,0.00012691,2]
[404152170,1769883038505,-500.0,0.00012691,2]
[404152171,1769883038514,-500.0,0.00012691,2]
[404152172,1769883038524,-500.0,0.00012691,2]
[404152173,1769883038534,-500.0,0.00012691,2]
[404152174,1769883038543,-500.0,0.00012691,2]
[404152175,1769883038553,-500.0,0.00012691,2]
[404152176,1769883038563,-500.0,0.00012691,2]
[404152177,1769883038573,-278.30139907,0.00012691,2]
[404152178,1769883038584,-500.0,0.00012691,2]
[404152179,1769883038594,-500.0,0.00012691,2]
[404152180,1769883038604,-500.0,0.00012691,2]
[404152182,1769883038620,-273.31,0.00012691,2]
[404152184,1769883038630,-273.31,0.00012965,2]
[404152186,1769883038640,-273.31,0.00013239,2]
[404152188,1769883038649,-273.31,0.00013513,2]
[404152190,1769883038659,-500.0,0.00013698,2]
[404152192,1769883038669,-166.37398015,0.00013698,2]
[404152194,1769883038681,-500.0,0.00013698,2]
[404152196,1769883038691,-500.0,0.00013698,2]
[404152198,1769883038700,-500.0,0.00013698,2]
[404152200,1769883038710,-500.0,0.00013698,2]
[404152202,1769883038719,-273.32,0.00013787,2]
[404152204,1769883038728,-600.0,0.00013849,2]
[404152206,1769883038738,-250.0,0.0001385,2]
[404152208,1769883038747,-600.0,0.0001385,2]
[404152210,1769883038757,-195.0,0.0001385,2]
[404152213,1769883038766,-500.0,0.00013851,2]
[404152215,1769883038775,-195.0,0.00013851,2]
[404152218,1769883038785,-600.0,0.00013851,2]
[404152220,1769883038794,-195.0,0.00013851,2]
[404152221,1769883038803,-250.0,0.00013851,2]
[404152223,1769883038812,-856.407497,0.00013851,2]
[404152226,1769883038822,-6538.04702829,0.00013938,2]
[404152228,1769883038831,-1095.26452472,0.000152,2]
[404152230,1769883038841,-2890.42040952,0.000152,2]
[404152232,1769883038850,-151.0,0.00015303,2]
[404152234,1769883038859,-151.0,0.00015303,2]
[404152236,1769883038870,-427.42,0.00015538,2]
[404152238,1769883038880,-5783.56,0.00015551,2]
[404152240,1769883038890,-150.99,0.00015551,2]
[404152242,1769883038903,-209.98,0.0001592,2]
[404152244,1769883038912,-12006.06031353,0.0001599,2]
[404152246,1769883038922,-18271.10273613,0.00015991,2]
[404152248,1769883038934,-200.0,0.00016001,2]
[404152250,1769883038944,-898.25,0.00016004,2]
[404152252,1769883038954,-539.98785059,0.00016065,2]
[404152254,1769883038963,-2192.03,0.00016113,2]
[404152256,1769883038975,-9999.99,0.00016116,2]
[404152258,1769883038984,-1374.67,0.00016211,2]
[404152260,1769883038993,-1000.0,0.00016216,2]
[404152262,1769883039003,-11041.03,0.00016235,2]
[404152264,1769883039012,-500.0,0.00016295,2]
[404152266,1769883039022,-2490.41,0.00016342,2]
[404152268,1769883039032,-438.59266354,0.00016372,2]
[404152270,1769883039041,-500.0,0.00016373,2]
[404152272,1769883039051,-500.0,0.00016373,2]
[404152274,1769883039061,-500.0,0.00016373,2]
[404152276,1769883039070,-500.0,0.00016373,2]
[404152278,1769883039080,-500.0,0.00016373,2]
[404152280,1769883039089,-1500.0,0.00016399,2]
[404152282,1769883039098,-500.0,0.00016438,2]
[404152284,1769883039107,-500.0,0.00016438,2]
[404152285,1769883039116,-500.0,0.00016438,2]
[404152287,1769883039126,-500.0,0.00016438,2]
[404152290,1769883039135,-500.0,0.00016438,2]
[404152291,1769883039144,-500.0,0.00016438,2]
[404152293,1769883039153,-500.0,0.00016438,2]
[404152295,1769883039163,-500.0,0.00016438,2]
[404152297,1769883039172,-500.0,0.00016438,2]
[404152299,1769883039182,-500.0,0.00016438,2]
[404152301,1769883039191,-500.0,0.00016438,2]
[404152303,1769883039200,-500.0,0.00016438,2]
[404152304,1769883039209,-500.0,0.00016438,2]
[404152306,1769883039218,-500.0,0.00016438,2]
[404152308,1769883039228,-500.0,0.00016438,2]
[404152310,1769883039236,-500.0,0.00016438,2]
[404152312,1769883039247,-500.0,0.00016438,2]
[404152314,1769883039256,-500.0,0.00016438,2]
[404152316,1769883039266,-500.0,0.00016438,2]
[404152318,1769883039275,-500.0,0.00016438,2]
[404152320,1769883039285,-603.78186983,0.00016438,2]
[404152322,1769883039294,-500.0,0.00016438,2]
[404152324,1769883039303,-500.0,0.00016438,2]
[404152325,1769883039312,-500.0,0.00016438,2]
[404152326,1769883039321,-500.0,0.00016438,2]
[404152327,1769883039330,-500.0,0.00016438,2]
[404152328,1769883039338,-500.0,0.00016438,2]
[404152329,1769883039348,-500.0,0.00016438,2]
[404152330,1769883039357,-500.0,0.00016438,2]
[404152331,1769883039366,-500.0,0.00016438,2]
[404152332,1769883039375,-500.0,0.00016438,2]
[404152333,1769883039385,-500.0,0.00016438,2]
[404152334,1769883039394,-500.0,0.00016438,2]
[404152335,1769883039403,-500.0,0.00016438,2]
[404152337,1769883039413,-500.0,0.00016438,2]
[404152339,1769883039421,-500.0,0.00016438,2]
[404152341,1769883039432,-500.0,0.00016438,2]
[404152343,1769883039442,-500.0,0.00016438,2]
[404152345,1769883039451,-500.0,0.00016438,2]
[404152347,1769883039460,-500.0,0.00016438,2]
[404152349,1769883039470,-500.0,0.00016438,2]
[404152351,1769883039480,-500.0,0.00016438,2]
[404152353,1769883039489,-500.0,0.00016438,2]
[404152355,1769883039498,-4816.28,0.00016461,2]
[404152357,1769883039508,-167.5,0.00016564,2]
[404152359,1769883039517,-500.0,0.00016673,3]
[404152361,1769883039526,-2142.35,0.00016696,2]
[404152363,1769883039536,-219.35,0.00016712,2]
[404152365,1769883039545,-831.0,0.0001672,2]
[404152367,1769883039554,-308.89582268,0.0001683,2]
[404152369,1769883039564,-1000.0,0.00016921,2]
[404152371,1769883039573,-516.45192786,0.00016921,2]
[404152373,1769883039582,-500.0,0.00016921,2]
[404152375,1769883039591,-500.0,0.00016921,2]
[404152377,1769883039600,-373.99795939,0.00016921,2]
[404152379,1769883039609,-1358.41,0.00017067,2]
[404152381,1769883039619,-1358.41,0.00017122,2]
[404152383,1769883039628,-1358.41,0.00017176,2]
[404152385,1769883039638,-421.88469562,0.000172,2]
[404152388,1769883039647,-2508.0,0.000172,2]
[404152390,1769883039657,-1358.41,0.0001723,2]
[404152392,1769883039667,-167.5,0.00017248,2]
[404152394,1769883039675,-1358.41,0.00017285,2]
[404152396,1769883039687,-3474.976,0.00017286,2]
[404152397,1769883039696,-238.929,0.00017286,2]
[404152399,1769883039705,-1258.0420475,0.00017339,2]
[404152402,1769883039720,-100.3679525,0.00017339,2]
[404152404,1769883039730,-1358.41,0.00017394,2]
[404152406,1769883039739,-1060.7137751,0.00017448,2]
[404152408,1769883039750,-297.6962249,0.00017448,2]
[404152410,1769883039759,-60.63862674,0.00017468,2]
[404152413,1769883039774,-1439.36137326,0.00017468,2]
[404152415,1769883039783,-1358.41,0.00017503,2]
[404152417,1769883039792,-1358.41,0.00017557,2]
[404152419,1769883039803,-500.0,0.00017599,2]
[404152420,1769883039812,-500.0,0.00017599,2]
[404152422,1769883039821,-500.0,0.00017599,2]
[404152425,1769883039830,-423.39013174,0.00017612,2]
[404152427,1769883039845,-935.01986826,0.00017612,2]
[404152429,1769883039854,-206.42404466,0.0001764,2]
[404152431,1769883039863,-1358.41,0.00017666,2]
[404152433,1769883039873,-838.0,0.0001768,2]
[404152435,1769883039883,-179.0,0.0001768,2]
[404152437,1769883039894,-311.48,0.00017681,2]
[404152439,1769883039906,-150.0,0.00017699,2]
[404152441,1769883039916,-150.0,0.00017699,2]
[404152443,1769883039925,-500.0,0.00017699,2]
[404152445,1769883039937,-500.0,0.00017699,2]
[404152447,1769883039946,-500.0,0.00017699,2]
[404152449,1769883039955,-150.0,0.00017699,2]
[404152451,1769883039966,-150.0,0.00017699,2]
[404152453,1769883039975,-500.0,0.00017699,2]
[404152455,1769883039985,-500.0,0.00017699,2]
[404152457,1769883039994,-500.0,0.00017699,2]
[404152459,1769883040003,-500.0,0.00017699,2]
[404152461,1769883040012,-500.0,0.00017699,2]
[404152463,1769883040021,-500.0,0.00017699,2]
[404152465,1769883040031,-500.0,0.00017699,2]
[404152468,1769883040039,-165.88836911,0.00017699,2]
[404152470,1769883040048,-150.0,0.00017699,2]
[404152472,1769883040057,-500.0,0.00017699,2]
[404152474,1769883040066,-500.0,0.00017699,2]
[404152476,1769883040076,-500.0,0.00017699,2]
[404152478,1769883040085,-500.0,0.00017699,2]
[404152480,1769883040094,-150.0,0.00017699,2]
[404152482,1769883040103,-150.0,0.00017699,2]
[404152484,1769883040112,-500.0,0.00017699,2]
[404152486,1769883040121,-150.0,0.00017699,2]
[404152488,1769883040131,-500.0,0.00017699,2]
[404152490,1769883040140,-500.0,0.00017699,2]
[404152492,1769883040149,-150.0,0.00017699,2]
[404152494,1769883040158,-250.0,0.00017699,2]
[404152496,1769883040167,-500.0,0.00017699,2]
[404152498,1769883040176,-1358.41,0.0001772,2]
[404152501,1769883040187,-200.0,0.00017754,2]
[404152502,1769883040196,-150.0,0.00017754,2]
[404152505,1769883040206,-500.0,0.00017754,2]
[404152507,1769883040215,-500.0,0.00017754,2]
[404152509,1769883040224,-500.0,0.00017754,2]
[404152511,1769883040233,-150.0,0.00017754,2]
[404152513,1769883040242,-50.23293118,0.00017754,2]
[404152527,1769883040362,-99.76706882,0.00017754,2]
[404152529,1769883040371,-409.69491589,0.00017754,2]
[404152534,1769883040407,-90.30508411,0.00017754,2]
[404152536,1769883040416,-500.0,0.00017754,2]
[404152537,1769883040426,-500.0,0.00017754,2]
[404152539,1769883040437,-149.77491589,0.00017754,2]
[404152544,1769883040465,-350.22508411,0.00017754,2]
[404152546,1769883040474,-500.0,0.00017754,2]
[404152548,1769883040484,-500.0,0.00017754,2]
[404152550,1769883040493,-537.74266754,0.00017754,2]
[404152551,1769883040503,-500.0,0.00017754,2]
[404152553,1769883040512,-500.0,0.00017754,2]
[404152555,1769883040521,-500.0,0.00017754,2]
[404152557,1769883040530,-500.0,0.00017754,2]
[404152560,1769883040540,-500.0,0.00017754,2]
[404152561,1769883040549,-150.0,0.00017754,2]
[404152564,1769883040559,-500.0,0.00017754,2]
[404152566,1769883040568,-500.0,0.00017754,2]
[404152568,1769883040577,-202.27114537,0.00017754,2]
[404152570,1769883040586,-500.0,0.00017754,2]
[404152572,1769883040595,-1358.41,0.00017775,2]
[404152574,1769883040604,-150.0,0.00017809,2]
[404152576,1769883040614,-500.0,0.00017809,2]
[404152578,1769883040623,-303.9607539,0.00017809,2]
[404152580,1769883040632,-155.37592128,0.00017809,2]
[404152582,1769883040641,-150.0,0.00017809,2]
[404152584,1769883040650,-150.0,0.00017809,2]
[404152585,1769883040659,-500.0,0.00017809,2]
[404152588,1769883040669,-304.95816503,0.00017809,2]
[404152590,1769883040678,-327.45236989,0.00017809,2]
[404152591,1769883040688,-500.0,0.00017809,2]
[404152594,1769883040698,-500.0,0.00017809,2]
[404152596,1769883040707,-500.0,0.00017809,2]
[404152598,1769883040717,-500.0,0.00017809,2]
[404152600,1769883040727,-500.0,0.00017809,2]
[404152602,1769883040736,-500.0,0.00017809,2]
[404152604,1769883040745,-500.0,0.00017809,2]
[404152606,1769883040755,-500.0,0.00017809,2]
[404152608,1769883040764,-150.0,0.00017809,2]
[404152610,1769883040773,-500.0,0.00017809,2]
[404152612,1769883040783,-500.0,0.00017809,2]
[404152614,1769883040792,-300.0,0.00017809,2]
[404152616,1769883040801,-217.99502,0.0001782,2]
[404152619,1769883040810,-217.99503,0.0001782,2]
[404152622,1769883040819,-1358.41,0.00017829,2]
[404152624,1769883040828,-2000.0,0.00017842,2]
[404152626,1769883040837,-2000.0,0.00017842,2]
[404152628,1769883040848,-2000.0,0.00017842,2]
[404152630,1769883040857,-2000.0,0.00017842,2]
[404152632,1769883040866,-2000.0,0.00017842,2]
[404152634,1769883040875,-2000.0,0.00017842,2]
[404152636,1769883040885,-987.967,0.00017842,2]
[404152638,1769883040895,-1000.0,0.00017842,2]
[404152640,1769883040905,-1000.0,0.00017842,2]
[404152642,1769883040914,-1000.0,0.00017842,2]
[404152644,1769883040923,-1000.0,0.00017842,2]
[404152646,1769883040932,-1000.0,0.00017842,2]
[404152648,1769883040942,-500.0,0.00017863,2]
[404152650,1769883040952,-150.0,0.00017863,2]
[404152652,1769883040961,-306.00668155,0.00017863,2]
[404152654,1769883040972,-300.0,0.00017863,2]
[404152656,1769883040981,-450.0,0.00017863,2]
[404152658,1769883040990,-156.49262125,0.00017863,2]
[404152660,1769883040999,-500.0,0.00017863,2]
[404152661,1769883041008,-150.0,0.00017863,2]
[404152663,1769883041017,-500.0,0.00017863,2]
[404152665,1769883041026,-500.0,0.00017863,2]
[404152667,1769883041035,-1358.41,0.00017884,2]
[404152669,1769883041044,-2625.4729,0.000179,2]
[404152671,1769883041053,-481.60584684,0.000179,2]
[404152673,1769883041062,-1025.9145602,0.000179,2]
[404152675,1769883041072,-452.48573436,0.000179,2]
[404152677,1769883041081,-1000.0,0.000179,2]
[404152679,1769883041090,-500.0,0.000179,2]
[404152681,1769883041099,-500.0,0.000179,2]
[404152705,1769883041303,-500.0,0.000179,2]
[404152708,1769883041320,-500.0,0.000179,2]
[404152710,1769883041329,-500.0,0.000179,2]
[404152712,1769883041338,-500.0,0.000179,2]
[404152714,1769883041347,-500.0,0.000179,2]
[404152716,1769883041356,-500.0,0.000179,2]
[404152718,1769883041365,-500.0,0.000179,2]
[404152720,1769883041374,-500.0,0.000179,2]
[404152722,1769883041383,-500.0,0.000179,2]
[404152724,1769883041392,-500.0,0.000179,2]
[404152726,1769883041401,-500.0,0.000179,2]
[404152728,1769883041410,-500.0,0.000179,2]
[404152730,1769883041419,-500.0,0.000179,2]
[404152732,1769883041428,-500.0,0.000179,2]
[404152734,1769883041437,-500.0,0.000179,2]
[404152736,1769883041448,-500.0,0.000179,2]
[404152738,1769883041457,-500.0,0.000179,2]
[404152740,1769883041466,-500.0,0.000179,2]
[404152742,1769883041475,-500.0,0.000179,2]
[404152744,1769883041484,-500.0,0.000179,2]
[404152746,1769883041493,-500.0,0.000179,2]
[404152748,1769883041502,-235.9326211,0.000179,2]
[404152750,1769883041512,-178.11247144,0.00017918,2]
[404152752,1769883041521,-453.45714762,0.00017918,2]
[404152754,1769883041530,-500.0,0.00017918,2]
[404152756,1769883041540,-176.0,0.00017918,2]
[404152758,1769883041550,-500.0,0.00017918,2]
[404152761,1769883041559,-500.0,0.00017918,2]
[404152763,1769883041569,-167.5,0.00017931,2]
[404152765,1769883041579,-1358.41,0.00017938,2]
[404152767,1769883041588,-502.15998223,0.00017973,2]
[404152769,1769883041597,-500.0,0.00017973,2]
[404152771,1769883041607,-515.88206341,0.00017973,2]
[404152773,1769883041616,-500.0,0.00017973,2]
[404152775,1769883041625,-500.0,0.00017973,2]
[404152777,1769883041634,-500.0,0.00017973,2]
[404152779,1769883041643,-500.0,0.00017973,2]
[404152781,1769883041652,-500.0,0.00017973,2]
[404152782,1769883041661,-500.0,0.00017973,2]
[404152785,1769883041671,-500.0,0.00017973,2]
[404152786,1769883041680,-500.0,0.00017973,2]
[404152789,1769883041690,-500.0,0.00017973,2]
[404152791,1769883041699,-500.0,0.00017973,2]
[404152793,1769883041708,-500.0,0.00017973,2]
[404152794,1769883041718,-500.0,0.00017973,2]
[404152797,1769883041727,-500.0,0.00017973,2]
[404152798,1769883041736,-500.0,0.00017973,2]
[404152800,1769883041745,-500.5347476,0.00017973,2]
[404152802,1769883041755,-500.0,0.00017973,2]
[404152804,1769883041764,-500.0,0.00017973,2]
[404152807,1769883041774,-584.86466262,0.00017973,2]
[404152809,1769883041783,-500.0,0.00017973,2]
[404152810,1769883041792,-150.2937682,0.00017973,2]
[404152812,1769883041807,-500.0,0.00017973,2]
[404152814,1769883041816,-500.0,0.00017973,2]
[404152817,1769883041825,-500.0,0.00017973,2]
[404152818,1769883041835,-185.00968498,0.00017973,2]
[404152820,1769883041844,-500.0,0.00017973,2]
[404152822,1769883041853,-500.0,0.00017973,2]
[404152824,1769883041863,-500.0,0.00017973,2]
[404152826,1769883041872,-500.0,0.00017973,2]
[404152829,1769883041882,-289.92758812,0.00017973,2]
[404152830,1769883041893,-500.0,0.00017973,2]
[404152833,1769883041904,-500.0,0.00017973,2]
[404152835,1769883041913,-514.38936739,0.00017973,2]
[404152836,1769883041922,-503.45670612,0.00017973,2]
[404152839,1769883041933,-500.0,0.00017973,2]
[404152841,1769883041943,-500.0,0.00017973,2]
[404152842,1769883041952,-500.0,0.00017973,2]
[404152844,1769883041962,-500.0,0.00017973,2]
[404152846,1769883041972,-500.0,0.00017973,2]
[404152848,1769883041981,-500.0,0.00017973,2]
[404152850,1769883041990,-1358.41,0.00017993,2]
[404152852,1769883041999,-155.268,0.00017999,2]
[404152854,1769883042008,-887.2355585,0.00017999,2]
[404152856,1769883042017,-39208.0893368,0.00017999,2]
[404152857,1769883042026,-1863.66216343,0.00017999,2]
[404152858,1769883042035,-332.52035645,0.00017999,2]
[404152859,1769883042043,-500.0,0.00017999,2]
[404152860,1769883042052,-554.90775112,0.00017999,2]
[404152861,1769883042060,-500.0,0.00017999,2]
[404152862,1769883042069,-500.0,0.00017999,2]
[404152863,1769883042078,-394.32,0.00017999,2]
[404152864,1769883042087,-6385.0,0.00018,2]
[404152865,1769883042095,-279230.81989878,0.00018,2]
[404152867,1769883042107,-1890.52566694,0.00018,2]
[404152869,1769883042118,-2864.5783744,0.00018,2]
[404152871,1769883042128,-5678.50813704,0.00018,2]
[404152873,1769883042139,-432.50838,0.00018,2]
[404152875,1769883042151,-10138.57672668,0.00018,2]
[404152878,1769883042161,-644.20590704,0.00018,2]
[404153063,1769883043930,-287.80291528,0.00018,2]
[404153075,1769883044012,-1579.44,0.00018,2]
[404153155,1769883044839,-3945.3922252,0.00018,2]
[404153160,1769883044879,-217.88882162,0.00018,2]
[404153162,1769883044890,-8464.50546,0.00018,2]
[404153164,1769883044907,-70125.55861503,0.00018,2]
[404153177,1769883045020,-17500.2,0.00018,2]
[404153316,1769883046281,-151.0,0.00015445,2]
[404153318,1769883046291,-151.0,0.00015445,2]
[404153320,1769883046300,-220.02000001,0.00018,2]
[404153322,1769883046311,-18770.97929346,0.00018,2]
[404153325,1769883046335,-2605.73260816,0.00018,2]
[404153338,1769883046445,-10294.69466363,0.00018,2]
[404153340,1769883046458,-8163.64244957,0.00018,2]
[404153345,1769883046499,-429.12691087,0.00018,2]
[404153347,1769883046510,-4516.21416499,0.00018,2]
[404153349,1769883046522,-400.0,0.00018,2]
[404153354,1769883046552,-326.0,0.00018,2]
[404153356,1769883046563,-1764.57105184,0.00018,2]
[404153363,1769883046622,-33046.96278519,0.00018,2]
[404153366,1769883046637,-553.29706463,0.00018,2]
[404153368,1769883046649,-1159.3,0.00018,2]
[404153370,1769883046660,-400.0,0.00018,2]
[404153373,1769883046671,-3713.08295613,0.00018,2]
[404153375,1769883046682,-1000.0,0.00018,2]
[404153377,1769883046694,-7908.49999999,0.00018,2]
[404153379,1769883046705,-12014.99999998,0.00018,2]
[404153640,1769883059942,510.5,0.00043498,30]
[404153641,1769883069273,174.61919141,0.00043498,30]
[404153642,1769883074908,500.0,0.00043498,30]
[404153643,1769883075209,620.0,0.00043498,30]
[404153644,1769883075512,500.0,0.00043498,30]
[404153645,1769883076098,500.0,0.00043498,30]
[404153646,1769883076795,500.0,0.00043498,30]
[404153647,1769883082512,505.05711075,0.00043498,30]
[404153648,1769883083626,854.2589148,0.00043498,30]
[404153650,1769883132342,372.88546592,0.00043498,30]
[404153651,1769883135967,239.80605061,0.00043498,30]
[404153652,1769883142178,200.0,0.00043498,30]
[404153654,1769883188261,500.0,0.00012591,2]
[404153655,1769883188314,500.0,0.00012591,2]
[404153657,1769883224635,500.0,0.00012591,2]
[404153658,1769883224689,234.84695039,0.00012591,2]
[404153659,1769883224712,276.40277902,0.00012591,2]
[404153660,1769883245727,306.01483962,0.00043498,30]
[404153661,1769883245791,250.0,0.00043498,30]
[404153662,1769883248406,250.0,0.00043498,30]
[404153663,1769883255856,454.89087615,0.00043498,30]
[404153664,1769883637397,150.01,0.00043499,30]
[404153665,1769883647530,168.76412082,0.00013338,120]
[404153666,1769883675615,2000.0,0.00043499,30]
[404153667,1769883685341,1923.0,0.00043499,30]
[404153668,1769883733118,204.46134537,0.00043499,30]
[404153669,1769883739792,503.45715078,0.00043499,30]
[404153672,1769883952680,926.06706832,0.0001269,2]
[404153673,1769883968298,250404.92915912,0.00043499,30]
[404153674,1769884027903,151.0,0.00043499,30]
[404153675,1769884028792,156.587,0.00043499,30]
[404153676,1769884029406,162.380719,0.00043499,30]
[404153677,1769884030028,168.3888056,0.00043499,30]
[404153678,1769884030650,174.61919141,0.00043499,30]
[404153679,1769884031251,181.08010149,0.00043499,30]
[404153680,1769884032143,187.78006525,0.00043499,30]
[404153681,1769884032609,194.72792766,0.00043499,30]
[404153682,1769884033273,201.93286099,0.00043499,30]
[404153683,1769884033939,209.40437684,0.00043499,30]
[404153684,1769884034549,217.15233878,0.00043499,30]
[404153686,1769884035171,225.18697532,0.00043499,30]
[404153687,1769884035794,233.51889341,0.00043499,30]
[404153688,1769884036525,242.15909246,0.00043499,30]
[404153689,1769884037675,251.11897888,0.00043499,30]
[404153690,1769884038333,260.4103811,0.00043499,30]
[404153691,1769884038966,270.0455652,0.00043499,30]
[404153692,1769884039610,280.03725112,0.00043499,30]
[404153693,1769884040346,290.39862941,0.00043499,30]
[404153694,1769884040984,290.39862941,0.00043499,30]
[404153698,1769884107632,1230.06438644,0.00015,3]
[404153739,1769884231285,-1200.0,0.00012923,2]
[404153741,1769884231296,-256.0,0.00012923,2]
[404153743,1769884231307,-708.99999942,0.00012924,2]
[404153744,1769884231320,-8024.32000058,0.00012924,2]
[404153745,1769884231331,-251.82118686,0.00013031,2]
[404153746,1769884231341,-300.0,0.00013131,2]
[404153747,1769884231351,-155.78,0.00013338,2]
[404153748,1769884231362,-500.0,0.00013598,2]
[404153749,1769884231373,-300.0,0.00013695,2]
[404153750,1769884231384,-300.0,0.00013695,2]
[404153751,1769884231394,-300.0,0.00013695,2]
[404153752,1769884231404,-300.0,0.00013695,2]
[404153753,1769884231415,-1200.0,0.00013696,2]
[404153754,1769884231425,-500.0,0.00013698,2]
[404153755,1769884231435,-500.0,0.00013698,2]
[404153756,1769884231448,-1680.0,0.00014215,2]
[404153757,1769884231458,-250.0,0.00014215,2]
[404153758,1769884231468,-195.0,0.00014216,2]
[404153759,1769884231478,-300.0,0.00014216,2]
[404153760,1769884231488,-250.0,0.00014672,2]
[404153761,1769884231498,-250.0,0.00014672,2]
[404153763,1769884231508,-4640.92909405,0.00014948,2]
[404153765,1769884231519,-150.0,0.00014956,2]
[404153767,1769884231528,-9999.99,0.00014957,2]
[404153769,1769884231538,-4105.18,0.00014957,2]
[404153771,1769884231548,-150.99,0.00014958,2]
[404153772,1769884231558,-15407.05,0.00014958,2]
[404153774,1769884231568,-250.0,0.00015,2]
[404153776,1769884231578,-420.0,0.00015008,2]
[404153778,1769884231588,-190.0,0.00015008,2]
[404153780,1769884231598,-946.65,0.00015366,2]
[404153781,1769884231609,-925.0,0.00015637,2]
[404153782,1769884231619,-166.66,0.00015681,2]
[404153784,1769884231629,-12937.34,0.00015873,2]
[404153786,1769884231639,-3128.79,0.00015985,2]
[404153788,1769884231649,-24009.56821949,0.00016,4]
[404153790,1769884231658,-166.66,0.00016011,2]
[404153792,1769884231668,-500.0,0.00016069,2]
[404153794,1769884231677,-255.0,0.00016078,2]
[404153797,1769884231691,-946.65,0.00016135,2]
[404153799,1769884231702,-168.73,0.00016146,2]
[404153801,1769884231712,-6880.85,0.00016169,2]
[404153803,1769884231721,-7570.59264277,0.000162,5]
[404153805,1769884231731,-157.70975921,0.00016245,2]
[404153810,1769884232159,-166.66,0.00016342,2]
[404153811,1769884232179,-500.0,0.00016373,2]
[404153812,1769884232193,-500.0,0.00016373,2]
[404153813,1769884232203,-500.0,0.00016373,2]
[404153814,1769884232213,-500.94761523,0.00016373,2]
[404153815,1769884232222,-420.8545815,0.00016373,2]
[404153816,1769884232231,-500.0,0.00016373,2]
[404153817,1769884232240,-500.0,0.00016373,2]
[404153818,1769884232250,-500.0,0.00016373,2]
[404153819,1769884232260,-500.0,0.00016373,2]
[404153820,1769884232270,-500.0,0.00016373,2]
[404153821,1769884232280,-401.6985914,0.00016373,2]
[404153822,1769884232292,-500.0,0.00016373,2]
[404153823,1769884232302,-500.62954714,0.00016373,2]
[404153824,1769884232312,-500.0,0.00016373,2]
[404153825,1769884232324,-502.1700093,0.00016373,2]
[404153826,1769884232335,-500.0,0.00016373,2]
[404153827,1769884232345,-501.65706127,0.00016373,2]
[404153828,1769884232355,-502.09483667,0.00016373,2]
[404153829,1769884232365,-500.0,0.00016373,2]
[404153830,1769884232375,-587.0,0.00016447,2]
[404153831,1769884232386,-1852.42,0.0001658,2]